[Event "Campeonato de España Universitario Relámpago"]
[Site "Zaragoza, Spain"]
[Date "2024.04.24"]
[Round "4.5"]
[White "Diaz Mino, Pablo"]
[Black "Fernandez Lopez, Ruben"]
[Result "0-1"]
[TimeControl "3 min + 2 sg"]
[WhiteFideId "24520470"]
[BlackFideId "24518298"]
[WhiteElo "2127"]
[BlackElo "2262"]

1. e4 {[%clk 00:03:03]} c5 {[%clk 00:03:02]} {[%emt 00:00:02]} 2. c3 {[%clk
00:03:04]} {[%emt 00:00:01]} Nf6 {[%clk 00:03:03]} {[%emt 00:00:01]} 3. e5
{[%clk 00:03:06]} {[%emt 00:00:01]} Nd5 {[%clk 00:03:04]} 4. d4 {[%clk
00:03:06]} {[%emt 00:00:01]} cxd4 {[%clk 00:03:04]} {[%emt 00:00:02]} 5. Nf3
{[%clk 00:03:07]} e6 {[%clk 00:03:05]} {[%emt 00:00:02]} 6. cxd4 {[%clk
00:03:06]} {[%emt 00:00:02]} d6 {[%clk 00:03:06]} {[%emt 00:00:02]} 7. Bc4
{[%clk 00:03:05]} {[%emt 00:00:04]} Nc6 {[%clk 00:03:04]} {[%emt 00:00:04]} 8.
O-O {[%clk 00:02:59]} {[%emt 00:00:08]} Be7 {[%clk 00:03:03]} {[%emt 00:00:02]}
9. a3 {[%clk 00:03:00]} {[%emt 00:00:02]} O-O {[%clk 00:03:03]} {[%emt
00:00:02]} 10. Bd3 {[%clk 00:03:00]} {[%emt 00:00:01]} dxe5 {[%clk 00:02:43]}
{[%emt 00:00:23]} 11. dxe5 {[%clk 00:03:01]} {[%emt 00:00:02]} Qc7 {[%clk
00:02:39]} {[%emt 00:00:06]} 12. Re1 {[%clk 00:02:56]} {[%emt 00:00:07]} Rd8
{[%clk 00:02:39]} {[%emt 00:00:01]} 13. Qc2 {[%clk 00:02:55]} {[%emt 00:00:04]}
g6 {[%clk 00:02:40]} 14. b4 {[%clk 00:02:32]} {[%emt 00:00:25]} a6 {[%clk
00:02:31]} {[%emt 00:00:10]} 15. Bb2 {[%clk 00:02:17]} {[%emt 00:00:17]} Bd7
{[%clk 00:02:32]} {[%emt 00:00:01]} 16. Nbd2 {[%clk 00:02:15]} {[%emt
00:00:04]} Rac8 {[%clk 00:02:32]} {[%emt 00:00:01]} 17. Ne4 {[%clk 00:02:12]}
{[%emt 00:00:05]} Nxe5 {[%clk 00:02:24]} {[%emt 00:00:10]} 18. Qd1 {[%clk
00:01:44]} {[%emt 00:00:30]} Nxd3 {[%clk 00:01:56]} {[%emt 00:00:29]} 19. Qxd3
{[%clk 00:01:45]} {[%emt 00:00:01]} Bb5 {[%clk 00:01:25]} {[%emt 00:00:33]} 20.
Qd4 {[%clk 00:01:43]} {[%emt 00:00:05]} f6 {[%clk 00:01:26]} 21. Rac1 {[%clk
00:01:43]} {[%emt 00:00:02]} Qd7 {[%clk 00:01:27]} 22. Nc5 {[%clk 00:01:39]}
{[%emt 00:00:06]} Bxc5 {[%clk 00:01:28]} {[%emt 00:00:01]} 23. bxc5 {[%clk
00:01:34]} {[%emt 00:00:07]} Bc6 {[%clk 00:01:11]} {[%emt 00:00:19]} 24. Rcd1
{[%clk 00:01:32]} {[%emt 00:00:05]} Qg7 {[%clk 00:01:01]} {[%emt 00:00:11]} 25.
Rxe6 {[%clk 00:01:24]} {[%emt 00:00:10]} Re8 {[%clk 00:01:02]} 26. Rd6 {[%clk
00:01:22]} {[%emt 00:00:05]} Rcd8 {[%clk 00:00:56]} {[%emt 00:00:08]} 27. h3
{[%clk 00:01:15]} {[%emt 00:00:10]} Rxd6 {[%clk 00:00:56]} {[%emt 00:00:02]} 28.
cxd6 {[%clk 00:01:15]} {[%emt 00:00:01]} Qd7 {[%clk 00:00:54]} {[%emt
00:00:04]} 29. Qc5 {[%clk 00:01:16]} {[%emt 00:00:01]} Nf4 {[%clk 00:00:36]}
{[%emt 00:00:21]} 30. Qc4+ {[%clk 00:01:07]} {[%emt 00:00:11]} Ne6 {[%clk
00:00:37]} 31. Nd4 {[%clk 00:01:06]} {[%emt 00:00:03]} Qxd6 {[%clk 00:00:35]}
{[%emt 00:00:04]} 32. Re1 {[%clk 00:01:03]} {[%emt 00:00:06]} Bd5 {[%clk
00:00:35]} {[%emt 00:00:02]} 33. Qc3 {[%clk 00:00:53]} {[%emt 00:00:11]} Ng7
{[%clk 00:00:32]} {[%emt 00:00:05]} 34. Rxe8+ {[%clk 00:00:53]} {[%emt
00:00:03]} Nxe8 {[%clk 00:00:33]} 35. Qc8 {[%clk 00:00:50]} {[%emt 00:00:05]}
Kf7 {[%clk 00:00:30]} {[%emt 00:00:05]} 36. Qg4 {[%clk 00:00:42]} {[%emt
00:00:10]} h5 {[%clk 00:00:25]} {[%emt 00:00:07]} 37. Qc8 {[%clk 00:00:38]}
{[%emt 00:00:06]} Qe7 {[%clk 00:00:18]} {[%emt 00:00:08]} 38. Qc1 {[%clk
00:00:34]} {[%emt 00:00:07]} Qe4 {[%clk 00:00:18]} {[%emt 00:00:02]} 39. f3
{[%clk 00:00:33]} {[%emt 00:00:03]} Qe7 {[%clk 00:00:18]} {[%emt 00:00:02]} 40.
Kf2 {[%clk 00:00:33]} {[%emt 00:00:02]} Nd6 {[%clk 00:00:17]} {[%emt 00:00:03]}
41. Qh6 {[%clk 00:00:32]} {[%emt 00:00:03]} Qf8 {[%clk 00:00:10]} {[%emt
00:00:09]} 42. Qf4 {[%clk 00:00:31]} {[%emt 00:00:04]} Nc4 {[%clk 00:00:05]}
{[%emt 00:00:07]} 43. Bc3 {[%clk 00:00:31]} {[%emt 00:00:02]} Qxa3 {[%clk
00:00:06]} {[%emt 00:00:01]} 44. Qc7+ {[%clk 00:00:32]} Qe7 {[%clk 00:00:07]}
45. Qf4 {[%clk 00:00:31]} {[%emt 00:00:04]} g5 {[%clk 00:00:09]} 46. Qc1 {[%clk
00:00:31]} {[%emt 00:00:02]} h4 {[%clk 00:00:10]} 47. Qb1 {[%clk 00:00:32]}
{[%emt 00:00:01]} Qe3+ {[%clk 00:00:11]} 48. Kf1 {[%clk 00:00:32]} {[%emt
00:00:02]} Qxc3 {[%clk 00:00:09]} {[%emt 00:00:04]} 49. Qh7+ {[%clk 00:00:33]}
Ke8 {[%clk 00:00:10]} 50. Qh8+ {[%emt 00:00:02]} Kd7 51. Qg7+ {[%clk 00:00:32]}
{[%emt 00:00:03]} Kc8 {[%clk 00:00:12]} {[%emt 00:00:02]} 52. Qf8+ {[%clk
00:00:33]} {[%emt 00:00:01]} Kc7 {[%clk 00:00:13]} {[%emt 00:00:02]} 53. Qc5+
{[%clk 00:00:33]} Bc6 {[%clk 00:00:14]} 54. Ne6+ {[%clk 00:00:34]} {[%emt
00:00:01]} Kd7 {[%clk 00:00:13]} {[%emt 00:00:02]} 55. Nf8+ {[%emt 00:00:05]}
Ke8 56. Ng6 {[%clk 00:00:29]} {[%emt 00:00:05]} Nd2+ {[%emt 00:00:02]} 0-1

[ePGN "0.1;DGT LiveChess/2.2.6"]

[Event "Campeonato de España Universitario Relámpago"]
[Site "Zaragoza, Spain"]
[Date "2024.04.24"]
[Round "5.2"]
[White "Lopez Mulet, Inigo"]
[Black "Vela Frago, Alberto"]
[Result "1/2-1/2"]
[TimeControl "3 min + 2 sg"]
[WhiteFideId "22235620"]
[BlackFideId "24531685"]
[WhiteElo "2347"]
[BlackElo "2203"]

1. Nf3 {[%clk 00:03:02]} {[%emt 00:00:01]} d5 {[%clk 00:03:04]} 2. g3 {[%clk
00:02:59]} {[%emt 00:00:05]} Nd7 {[%clk 00:03:05]} 3. d4 {[%clk 00:02:55]}
{[%emt 00:00:07]} Nb6 {[%clk 00:03:06]} 4. Bg2 {[%clk 00:02:55]} {[%emt
00:00:03]} Bf5 {[%clk 00:03:07]} 5. Bf4 {[%clk 00:02:42]} {[%emt 00:00:15]} e6
{[%clk 00:03:08]} {[%emt 00:00:02]} 6. Nbd2 {[%clk 00:02:39]} {[%emt 00:00:05]}
h6 {[%clk 00:03:04]} {[%emt 00:00:06]} 7. c4 {[%clk 00:02:20]} {[%emt
00:00:21]} c6 {[%clk 00:03:05]} 8. Qb3 {[%clk 00:02:12]} {[%emt 00:00:11]} Qc8
{[%clk 00:02:54]} {[%emt 00:00:14]} 9. a4 {[%clk 00:01:55]} {[%emt 00:00:19]}
Nf6 {[%clk 00:02:52]} {[%emt 00:00:04]} 10. a5 {[%clk 00:01:50]} {[%emt
00:00:07]} Nbd7 {[%clk 00:02:53]} 11. O-O {[%clk 00:01:37]} {[%emt 00:00:15]}
Be7 {[%clk 00:02:54]} 12. Ne5 {[%clk 00:01:29]} {[%emt 00:00:10]} Nxe5 {[%clk
00:02:51]} {[%emt 00:00:04]} 13. Bxe5 {[%emt 00:00:10]} O-O {[%clk 00:02:52]}
14. Rfe1 {[%clk 00:01:14]} {[%emt 00:00:11]} a6 {[%clk 00:02:52]} {[%emt
00:00:02]} 15. e4 {[%clk 00:01:09]} {[%emt 00:00:06]} dxe4 {[%clk 00:02:52]}
{[%emt 00:00:02]} 16. Nxe4 {[%clk 00:01:09]} {[%emt 00:00:03]} Nxe4 {[%clk
00:02:51]} {[%emt 00:00:03]} 17. Bxe4 {[%clk 00:01:09]} {[%emt 00:00:02]} Bxe4
{[%clk 00:02:49]} {[%emt 00:00:05]} 18. Rxe4 {[%clk 00:01:10]} {[%emt
00:00:01]} Qd7 {[%clk 00:02:40]} {[%emt 00:00:11]} 19. Rae1 {[%clk 00:00:46]}
{[%emt 00:00:26]} c5 {[%clk 00:02:26]} {[%emt 00:00:15]} 20. d5 {[%clk
00:00:20]} {[%emt 00:00:29]} exd5 {[%clk 00:02:20]} {[%emt 00:00:08]} 21. cxd5
{[%clk 00:00:21]} Rad8 {[%clk 00:02:11]} {[%emt 00:00:11]} 22. Bxg7 {[%clk
00:00:17]} {[%emt 00:00:06]} Kxg7 {[%clk 00:02:04]} {[%emt 00:00:09]} 23. Rxe7
{[%clk 00:00:18]} {[%emt 00:00:01]} Qxd5 {[%clk 00:02:03]} {[%emt 00:00:03]} 24.
Qxb7 {[%clk 00:00:07]} {[%emt 00:00:13]} Qd6 {[%clk 00:01:30]} {[%emt
00:00:35]} 25. Qb6 {[%clk 00:00:07]} {[%emt 00:00:03]} c4 {[%clk 00:01:13]}
{[%emt 00:00:18]} 26. h4 {[%clk 00:00:07]} {[%emt 00:00:02]} Qd5 {[%clk
00:00:50]} {[%emt 00:00:26]} 27. R1e4 {[%clk 00:00:06]} {[%emt 00:00:03]} Rb8
{[%clk 00:00:43]} {[%emt 00:00:08]} 28. Qe3 {[%clk 00:00:06]} {[%emt 00:00:02]}
Rb3 {[%clk 00:00:34]} {[%emt 00:00:11]} 29. Rg4+ {[%clk 00:00:06]} {[%emt
00:00:02]} Kh7 {[%clk 00:00:35]} 30. Qc1 {[%clk 00:00:05]} {[%emt 00:00:02]}
Qf3 {[%clk 00:00:28]} {[%emt 00:00:09]} 31. Qxc4 {[%clk 00:00:05]} {[%emt
00:00:02]} Rxb2 {[%clk 00:00:25]} {[%emt 00:00:05]} 32. Qe4+ {[%clk 00:00:06]}
{[%emt 00:00:01]} Qxe4 {[%clk 00:00:25]} {[%emt 00:00:02]} 33. Rgxe4 {[%clk
00:00:07]} Ra2 {[%clk 00:00:24]} {[%emt 00:00:03]} 34. R4e5 {[%clk 00:00:08]}
{[%emt 00:00:01]} Kg6 {[%clk 00:00:13]} {[%emt 00:00:13]} 35. Ra7 {[%clk
00:00:09]} Rd8 {[%clk 00:00:13]} {[%emt 00:00:02]} 36. Rxa6+ {[%clk 00:00:10]}
{[%emt 00:00:02]} Kg7 {[%clk 00:00:12]} {[%emt 00:00:03]} 37. Rf5 {[%clk
00:00:11]} {[%emt 00:00:02]} Rd7 {[%clk 00:00:10]} {[%emt 00:00:04]} 38. Kg2
{[%clk 00:00:10]} {[%emt 00:00:02]} Ra3 {[%clk 00:00:11]} {[%emt 00:00:01]} 39.
Rb6 {[%clk 00:00:09]} {[%emt 00:00:03]} Ra7 {[%clk 00:00:10]} {[%emt 00:00:02]}
40. Rbb5 {[%clk 00:00:08]} {[%emt 00:00:03]} Kg6 {[%clk 00:00:10]} {[%emt
00:00:02]} 41. h5+ {[%clk 00:00:09]} {[%emt 00:00:01]} Kg7 {[%clk 00:00:11]} 42.
Rfd5 {[%clk 00:00:09]} {[%emt 00:00:02]} Rc3 {[%clk 00:00:11]} {[%emt
00:00:02]} 43. g4 {[%clk 00:00:08]} {[%emt 00:00:04]} Ra3 {[%clk 00:00:12]}
{[%emt 00:00:01]} 44. f3 {[%clk 00:00:09]} Rc3 45. Kg3 {[%emt 00:00:01]} Ra3
{[%clk 00:00:15]} 46. Kf4 {[%clk 00:00:08]} {[%emt 00:00:04]} Rc3 {[%clk
00:00:15]} {[%emt 00:00:02]} 47. Kf5 {[%clk 00:00:08]} {[%emt 00:00:02]} Rxf3+
{[%clk 00:00:15]} {[%emt 00:00:01]} 48. Ke4 {[%clk 00:00:09]} {[%emt 00:00:01]}
Rg3 {[%clk 00:00:17]} 49. Kf4 {[%clk 00:00:10]} {[%emt 00:00:01]} Ra3 {[%clk
00:00:18]} 50. Rdc5 {[%clk 00:00:08]} {[%emt 00:00:04]} Rd3 {[%clk 00:00:19]}
51. Rb6 {[%clk 00:00:06]} {[%emt 00:00:04]} Ra3 {[%clk 00:00:18]} {[%emt
00:00:02]} 52. Rbb5 {[%clk 00:00:07]} {[%emt 00:00:02]} Rd3 {[%clk 00:00:20]}
53. g5 {[%clk 00:00:06]} {[%emt 00:00:03]} Rd4+ {[%clk 00:00:11]} {[%emt
00:00:11]} 54. Ke3 {[%clk 00:00:06]} {[%emt 00:00:02]} Rd6 {[%clk 00:00:12]} 55.
Kf4 {[%clk 00:00:06]} {[%emt 00:00:02]} hxg5+ {[%clk 00:00:12]} {[%emt
00:00:01]} 56. Kxg5 {[%clk 00:00:07]} {[%emt 00:00:01]} Rd1 {[%clk 00:00:13]}
{[%emt 00:00:02]} 57. Rc4 {[%clk 00:00:06]} {[%emt 00:00:02]} Rg1+ {[%clk
00:00:13]} {[%emt 00:00:02]} 58. Rg4 {[%clk 00:00:08]} Ra1 {[%clk 00:00:10]}
{[%emt 00:00:06]} 59. h6+ {[%clk 00:00:08]} {[%emt 00:00:02]} Kh7 {[%clk
00:00:10]} {[%emt 00:00:01]} 60. Kf6 {[%clk 00:00:08]} {[%emt 00:00:02]} Ra6+
{[%clk 00:00:06]} {[%emt 00:00:06]} 61. Rb6 {[%clk 00:00:09]} {[%emt 00:00:02]}
Rxb6+ {[%clk 00:00:05]} {[%emt 00:00:03]} 62. axb6 {[%clk 00:00:09]} Rb1 {[%clk
00:00:06]} 63. Kxf7 {[%clk 00:00:06]} {[%emt 00:00:06]} Rxb6 {[%clk 00:00:07]}
{[%emt 00:00:01]} 64. Rf4 {[%clk 00:00:06]} {[%emt 00:00:01]} 1/2-1/2

[Event "Campeonato de España Universitario Relámpago"]
[Site "Zaragoza, Spain"]
[Date "2024.04.24"]
[Round "5.3"]
[White "Sempere Domenech, Abel"]
[Black "Luque Saiz, Andres"]
[Result "0-1"]
[TimeControl "3 min + 2 sg"]
[WhiteFideId "24508470"]
[BlackFideId "24510793"]
[WhiteElo "1987"]
[BlackElo "2346"]

1. d4 {[%clk 00:03:03]} Nf6 {[%clk 00:03:03]} {[%emt 00:00:02]} 2. Bg5 {[%clk
00:03:04]} Ne4 {[%clk 00:03:04]} {[%emt 00:00:02]} 3. Bf4 {[%clk 00:03:05]} c5
{[%clk 00:03:05]} 4. f3 {[%clk 00:03:04]} {[%emt 00:00:05]} Nf6 {[%clk
00:03:06]} {[%emt 00:00:01]} 5. d5 {[%clk 00:03:04]} {[%emt 00:00:01]} e6
{[%clk 00:03:07]} {[%emt 00:00:01]} 6. e4 {[%clk 00:03:04]} {[%emt 00:00:02]}
exd5 {[%clk 00:03:06]} {[%emt 00:00:03]} 7. exd5 {[%clk 00:03:05]} d6 {[%clk
00:03:07]} {[%emt 00:00:01]} 8. Nc3 {[%clk 00:02:58]} {[%emt 00:00:08]} Be7
{[%clk 00:03:08]} {[%emt 00:00:02]} 9. Bc4 {[%clk 00:02:52]} {[%emt 00:00:09]}
O-O {[%clk 00:03:08]} {[%emt 00:00:02]} 10. Nge2 {[%clk 00:02:49]} {[%emt
00:00:05]} a6 {[%clk 00:03:08]} {[%emt 00:00:03]} 11. a4 {[%clk 00:02:50]} Nh5
{[%clk 00:03:01]} {[%emt 00:00:08]} 12. O-O {[%clk 00:02:40]} {[%emt 00:00:12]}
Nxf4 {[%clk 00:03:02]} {[%emt 00:00:02]} 13. Nxf4 {[%clk 00:02:41]} Bf6 {[%clk
00:02:57]} {[%emt 00:00:07]} 14. Kh1 {[%clk 00:02:43]} Bf5 {[%clk 00:02:52]}
{[%emt 00:00:06]} 15. Bd3 {[%clk 00:02:32]} {[%emt 00:00:13]} Be5 {[%clk
00:02:51]} {[%emt 00:00:03]} 16. Bxf5 {[%clk 00:02:12]} {[%emt 00:00:22]} Bxf4
{[%clk 00:02:52]} {[%emt 00:00:01]} 17. Qd3 {[%clk 00:02:06]} {[%emt 00:00:08]}
g6 {[%clk 00:02:52]} {[%emt 00:00:01]} 18. Bh3 {[%clk 00:02:04]} {[%emt
00:00:04]} Nd7 {[%clk 00:02:52]} {[%emt 00:00:03]} 19. Bxd7 {[%clk 00:01:40]}
{[%emt 00:00:26]} Qxd7 {[%emt 00:00:01]} 20. Rae1 Rfe8 {[%clk 00:02:48]} {[%emt
00:00:06]} 21. Re4 {[%clk 00:01:29]} {[%emt 00:00:15]} Be5 {[%clk 00:02:46]}
{[%emt 00:00:04]} 22. Rfe1 {[%clk 00:01:27]} {[%emt 00:00:04]} f5 {[%clk
00:02:31]} {[%emt 00:00:17]} 23. R4e2 {[%clk 00:01:28]} Bxc3 {[%clk 00:02:10]}
{[%emt 00:00:24]} 24. Qxc3 {[%clk 00:01:20]} {[%emt 00:00:10]} Qxa4 {[%clk
00:02:10]} {[%emt 00:00:02]} 25. h4 {[%clk 00:01:11]} {[%emt 00:00:11]} Qxh4+
{[%clk 00:02:09]} {[%emt 00:00:02]} 26. Kg1 {[%clk 00:01:12]} {[%emt 00:00:01]}
Rxe2 {[%clk 00:01:58]} {[%emt 00:00:13]} 27. Rxe2 {[%clk 00:01:13]} Kf7 {[%clk
00:01:53]} {[%emt 00:00:08]} 28. Re6 {[%clk 00:01:11]} {[%emt 00:00:04]} Rd8
{[%clk 00:01:35]} {[%emt 00:00:19]} 29. Qb3 {[%clk 00:00:43]} {[%emt 00:00:30]}
b5 {[%clk 00:01:36]} {[%emt 00:00:01]} 30. Qa3 {[%clk 00:00:45]} Qd4+ {[%clk
00:01:37]} {[%emt 00:00:01]} 31. Kh1 {[%clk 00:00:39]} {[%emt 00:00:08]} Qxd5
{[%clk 00:01:36]} {[%emt 00:00:02]} 32. Re1 {[%clk 00:00:40]} {[%emt 00:00:01]}
Qc6 {[%clk 00:01:21]} {[%emt 00:00:17]} 33. b4 {[%clk 00:00:24]} {[%emt
00:00:18]} Re8 {[%clk 00:01:19]} {[%emt 00:00:03]} 34. Rd1 {[%clk 00:00:23]}
{[%emt 00:00:03]} c4 {[%clk 00:01:17]} {[%emt 00:00:04]} 35. Qc3 {[%clk
00:00:23]} {[%emt 00:00:02]} d5 {[%clk 00:01:14]} {[%emt 00:00:06]} 36. Qd4
{[%clk 00:00:25]} Qd6 {[%clk 00:01:03]} {[%emt 00:00:12]} 37. c3 {[%clk
00:00:26]} {[%emt 00:00:02]} Qe5 {[%clk 00:00:51]} {[%emt 00:00:13]} 38. Qa7+
{[%clk 00:00:24]} {[%emt 00:00:04]} Re7 {[%clk 00:00:52]} 39. Qa8 {[%clk
00:00:19]} {[%emt 00:00:07]} Qxc3 {[%clk 00:00:50]} {[%emt 00:00:04]} 40. Qxd5+
{[%clk 00:00:20]} {[%emt 00:00:01]} Kg7 {[%clk 00:00:51]} 41. Qd6 {[%clk
00:00:20]} {[%emt 00:00:03]} Re1+ {[%clk 00:00:48]} {[%emt 00:00:05]} 42. Rxe1
{[%clk 00:00:21]} Qxe1+ {[%clk 00:00:49]} {[%emt 00:00:01]} 43. Kh2 {[%clk
00:00:23]} Qh4+ {[%clk 00:00:49]} {[%emt 00:00:02]} 44. Kg1 {[%clk 00:00:25]}
Qf6 {[%clk 00:00:50]} {[%emt 00:00:01]} 45. Qc7+ {[%clk 00:00:22]} {[%emt
00:00:04]} Qf7 {[%clk 00:00:46]} {[%emt 00:00:06]} 46. Qe5+ {[%clk 00:00:24]}
Kg8 {[%clk 00:00:45]} {[%emt 00:00:04]} 47. Qb8+ {[%clk 00:00:25]} {[%emt
00:00:01]} Qf8 {[%clk 00:00:46]} 48. Qd6 {[%clk 00:00:24]} {[%emt 00:00:02]}
Qxd6 {[%clk 00:00:47]} {[%emt 00:00:01]} 0-1

[Event "Campeonato de España Universitario Relámpago"]
[Site "Zaragoza, Spain"]
[Date "2024.04.24"]
[Round "5.4"]
[White "Sanz Wawer, Daniel"]
[Black "Fernandez Lopez, Ruben"]
[Result "0-1"]
[TimeControl "3 min + 2 sg"]
[WhiteFideId "1185543"]
[BlackFideId "24518298"]
[WhiteElo "2214"]
[BlackElo "2262"]

1. d4 {[%clk 00:03:03]} d5 {[%clk 00:03:01]} {[%emt 00:00:03]} 2. Nf3 {[%clk
00:03:02]} {[%emt 00:00:03]} Nf6 {[%clk 00:03:03]} 3. e3 {[%clk 00:03:02]}
{[%emt 00:00:02]} c6 {[%clk 00:02:45]} {[%emt 00:00:19]} 4. c4 {[%clk
00:03:02]} {[%emt 00:00:02]} e6 {[%clk 00:02:43]} {[%emt 00:00:04]} 5. Nbd2
{[%clk 00:02:59]} {[%emt 00:00:04]} Nbd7 {[%clk 00:02:41]} {[%emt 00:00:05]} 6.
Bd3 {[%clk 00:03:00]} {[%emt 00:00:01]} Bd6 {[%clk 00:02:42]} {[%emt 00:00:01]}
7. O-O {[%clk 00:02:59]} {[%emt 00:00:03]} O-O {[%clk 00:02:41]} {[%emt
00:00:03]} 8. e4 {[%clk 00:02:57]} {[%emt 00:00:03]} dxe4 {[%clk 00:02:32]}
{[%emt 00:00:12]} 9. Nxe4 {[%clk 00:02:58]} {[%emt 00:00:01]} Nxe4 {[%clk
00:02:33]} {[%emt 00:00:01]} 10. Bxe4 {[%clk 00:02:59]} Nf6 {[%clk 00:02:13]}
{[%emt 00:00:22]} 11. Bc2 {[%clk 00:02:59]} {[%emt 00:00:01]} c5 {[%clk
00:02:09]} {[%emt 00:00:06]} 12. Bg5 {[%clk 00:02:54]} {[%emt 00:00:07]} h6
{[%clk 00:01:59]} {[%emt 00:00:13]} 13. Be3 {[%clk 00:01:49]} {[%emt 00:01:07]}
Qc7 {[%clk 00:01:41]} {[%emt 00:00:21]} 14. h3 {[%clk 00:01:39]} {[%emt
00:00:12]} Rd8 {[%clk 00:01:40]} {[%emt 00:00:03]} 15. Qe2 {[%clk 00:01:39]}
{[%emt 00:00:02]} b6 {[%clk 00:01:34]} {[%emt 00:00:08]} 16. Rad1 {[%clk
00:01:22]} {[%emt 00:00:18]} Bb7 {[%clk 00:01:35]} 17. b3 {[%clk 00:01:09]}
{[%emt 00:00:15]} Qe7 {[%clk 00:00:55]} {[%emt 00:00:42]} 18. Ne5 {[%clk
00:00:56]} {[%emt 00:00:16]} Nd7 {[%clk 00:00:35]} {[%emt 00:00:23]} 19. Nxd7
{[%clk 00:00:37]} {[%emt 00:00:20]} Rxd7 {[%clk 00:00:36]} {[%emt 00:00:01]} 20.
dxc5 {[%clk 00:00:35]} {[%emt 00:00:04]} Bxc5 {[%clk 00:00:23]} {[%emt
00:00:15]} 21. Rxd7 {[%clk 00:00:32]} {[%emt 00:00:05]} Qxd7 {[%clk 00:00:24]}
22. Bxc5 {[%clk 00:00:31]} {[%emt 00:00:03]} bxc5 {[%clk 00:00:17]} {[%emt
00:00:09]} 23. Rd1 {[%clk 00:00:29]} {[%emt 00:00:03]} Qc6 {[%clk 00:00:13]}
{[%emt 00:00:07]} 24. Qg4 {[%clk 00:00:28]} {[%emt 00:00:03]} Qc7 {[%clk
00:00:10]} {[%emt 00:00:05]} 25. Qh4 {[%clk 00:00:15]} {[%emt 00:00:15]} Re8
{[%clk 00:00:07]} {[%emt 00:00:05]} 26. Rd2 {[%clk 00:00:11]} {[%emt 00:00:06]}
Qe5 {[%clk 00:00:07]} {[%emt 00:00:02]} 27. Qg4 {[%clk 00:00:06]} {[%emt
00:00:06]} Qe1+ {[%clk 00:00:07]} {[%emt 00:00:03]} 28. Kh2 {[%clk 00:00:06]}
{[%emt 00:00:03]} Qxd2 {[%clk 00:00:07]} {[%emt 00:00:01]} 0-1